lending/lending_fUSD_20260222
["ID","MTS","AMOUNT","RATE_DAILY","PERIOD"]
[406362001,1771799442046,-200.0,0.00041583,8]
[406362002,1771799442056,-200.0,0.00041583,8]
[406362003,1771799442065,-200.0,0.00041583,8]
[406362004,1771799442074,-200.0,0.00041583,8]
[406362005,1771799442084,-3017.85,0.000416,2]
[406362006,1771799442093,-193.55,0.0004176,14]
[406362007,1771799442103,-10000.0,0.00042,120]
[406362008,1771799442112,-150.0,0.00042173,120]
[406362009,1771799442121,-500.0,0.00042299,2]
[406362010,1771799442130,-500.0,0.00042299,120]
[406362011,1771799442140,-2237.71006587,0.000425,2]
[406362012,1771799442148,-152.59,0.00042685,120]
[406362013,1771799442162,-200.0,0.00042776,120]
[406362014,1771799442172,-8988.5111939,0.0004279,14]
[406362015,1771799442182,-6291.90397855,0.0004295,10]
[406362016,1771799442191,-2000.0,0.00043,2]
[406362017,1771799442200,-7740.7327251,0.00043,2]
[406362018,1771799442210,-214.0,0.00043,7]
[406362019,1771799442220,-9881.93,0.00043,120]
[406362020,1771799442229,-5000.0,0.00043153,9]
[406362021,1771799442239,-276.886087,0.00043353,120]
[406362022,1771799442248,-282.59,0.00043452,120]
[406362023,1771799442257,-303.81833795,0.000438,60]
[406362024,1771799442266,-500.0,0.000438,60]
[406362025,1771799442280,-9093.0,0.00043807,7]
[406362026,1771799442289,-168.0,0.00043876,2]
[406362027,1771799442299,-150.0,0.00043939,30]
[406362028,1771799442308,-150.0,0.00043939,30]
[406362029,1771799442318,-150.0,0.00043939,30]
[406362030,1771799442327,-150.0,0.00043939,30]
[406362031,1771799442337,-150.0,0.00043939,30]
[406362032,1771799442347,-150.0,0.00043939,30]
[406362033,1771799442358,-150.0,0.00043939,30]
[406362034,1771799442367,-150.0,0.00043939,30]
[406362035,1771799442377,-150.0,0.00043939,30]
[406362036,1771799442386,-150.0,0.00043939,30]
[406362037,1771799442395,-150.0,0.00043939,30]
[406362038,1771799442404,-150.0,0.00043939,30]
[406362039,1771799442413,-150.0,0.00043939,30]
[406362040,1771799442422,-154.972,0.00043939,30]
[406362041,1771799442431,-500.0,0.00044,3]
[406362042,1771799442440,-100000.0,0.00044,9]
[406362043,1771799442449,-43190.44466715,0.00044,10]
[406362044,1771799442458,-40078.15933942,0.00044,10]
[406362045,1771799442468,-1707.82172191,0.00044065,2]
[406362046,1771799442476,-168.0,0.00044125,2]
[406362047,1771799442486,-13353.33484737,0.000442,7]
[406362048,1771799442495,-150.0,0.00044269,120]
[406362049,1771799442504,-150.0,0.00044281,120]
[406362050,1771799442513,-209.604307,0.00044376,120]
[406362051,1771799442523,-506.2571619,0.00044383,120]
[406362052,1771799442532,-500.0,0.00044383,120]
[406362053,1771799442541,-500.0,0.00044383,120]
[406362054,1771799442551,-500.0,0.00044383,120]
[406362055,1771799442560,-500.0,0.00044383,120]
[406362056,1771799442569,-500.0,0.00044383,120]
[406362057,1771799442579,-500.0,0.00044383,120]
[406362058,1771799442588,-500.0,0.00044383,120]
[406362059,1771799442597,-500.0,0.00044383,120]
[406362060,1771799442606,-500.0,0.00044383,120]
[406362061,1771799442616,-500.0,0.00044383,120]
[406362062,1771799442625,-500.0,0.00044383,120]
[406362063,1771799442634,-399.0374907,0.00044383,120]
[406362064,1771799442643,-500.0,0.00044383,120]
[406362065,1771799442652,-500.0,0.00044383,120]
[406362066,1771799442662,-500.0,0.00044383,120]
[406362067,1771799442671,-500.0,0.00044383,120]
[406362068,1771799442681,-550.41402608,0.00044383,120]
[406362069,1771799442690,-243.5358712,0.00044383,120]
[406362070,1771799442699,-500.0,0.00044383,120]
[406362071,1771799442708,-500.000001,0.00044383,120]
[406362072,1771799442717,-590.84051474,0.00044383,120]
[406362073,1771799442726,-150.0,0.000444,120]
[406362074,1771799442735,-150.0,0.000444,120]
[406362075,1771799442744,-150.0,0.000444,120]
[406362076,1771799442753,-150.0,0.000444,120]
[406362077,1771799442762,-7306.85574963,0.00044499,10]
[406362078,1771799442773,-150.0,0.00044569,120]
[406362079,1771799442783,-243.63605972,0.00044845,7]
[406362080,1771799442792,-500.0,0.00044896,60]
[406362081,1771799442801,-249.0001,0.000449,7]
[406362082,1771799442811,-243.63605972,0.0004495,7]
[406362083,1771799442820,-2013.46,0.00044972,2]
[406362084,1771799442829,-749.0,0.00044999,30]
[406362085,1771799442838,-500.0,0.00044999,2]
[406362086,1771799442848,-500.0,0.00044999,120]
[406362087,1771799442856,-500.0,0.00044999,120]
[406362088,1771799442866,-160101.8,0.00045,120]
[406362089,1771799442875,-1550.34520373,0.00045,120]
[406362090,1771799442884,-100000.0,0.00045,11]
[406362091,1771799442893,-100000.0,0.00045,10]
[406362092,1771799442902,-571.7447573,0.00045,4]
[406362093,1771799442912,-5363.34233539,0.00045,120]
[406362094,1771799442921,-1044.11858127,0.00045,30]
[406362095,1771799442930,-359.76,0.00045,30]
[406362096,1771799442939,-2013.46,0.00045037,2]
[406362097,1771799442948,-753.0,0.00045055,30]
[406362098,1771799442957,-243.63605972,0.00045062,30]
[406362099,1771799442967,-243.63605972,0.00045062,30]
[406362100,1771799442976,-2013.46,0.00045102,2]
[406362101,1771799442985,-2013.46,0.00045167,2]
[406362102,1771799442994,-2013.46,0.00045232,2]
[406362103,1771799443004,-2013.46,0.00045297,2]
[406362104,1771799443013,-500.0,0.00045323,9]
[406362105,1771799443022,-500.0,0.00045323,9]
[406362106,1771799443031,-500.0,0.00045323,9]
[406362107,1771799443040,-500.0,0.00045323,9]
[406362108,1771799443049,-500.0,0.00045323,9]
[406362109,1771799443058,-500.0,0.00045323,9]
[406362110,1771799443067,-500.0,0.00045323,9]
[406362111,1771799443076,-500.0,0.00045323,9]
[406362112,1771799443085,-500.0,0.00045323,9]
[406362113,1771799443098,-200.0,0.00045323,9]
[406362114,1771799443107,-200.0,0.00045323,9]
[406362115,1771799443117,-200.0,0.00045323,9]
[406362116,1771799443126,-200.0,0.00045323,9]
[406362117,1771799443135,-200.0,0.00045323,9]
[406362118,1771799443144,-200.0,0.00045323,9]
[406362119,1771799443153,-10000.0,0.00045326,2]
[406362120,1771799443163,-500.0,0.0004535,2]
[406362122,1771799443172,-500.0,0.0004535,120]
[406362123,1771799443181,-2013.46,0.00045361,2]
[406362124,1771799443190,-124473.7858728,0.00045383,2]
[406362125,1771799443199,-3082.9999699,0.00045383,2]
[406362126,1771799443208,-962.7902899,0.00045383,2]
[406362128,1771799443217,-10179.41725522,0.00045383,2]
[406362130,1771799443227,-7125.59207866,0.00045383,4]
[406362132,1771799443236,-150.0,0.000454,89]
[406362135,1771799443245,-425.51450765,0.000454,2]
[406362138,1771799443255,-50000.0,0.00045421,58]
[406362141,1771799443264,-50000.0,0.00045421,59]
[406362143,1771799443277,-50000.0,0.00045421,60]
[406362145,1771799443286,-50000.0,0.00045421,61]
[406362147,1771799443296,-50000.0,0.00045421,62]
[406362149,1771799443306,-50000.0,0.00045421,63]
[406362151,1771799443315,-151.0,0.00045422,7]
[406362152,1771799443324,-151.0,0.00045422,7]
[406362154,1771799443334,-151.0,0.00045422,7]
[406362156,1771799443343,-151.0,0.00045422,7]
[406362157,1771799443354,-285.355788,0.00045422,7]
[406362158,1771799443364,-2520736.01761513,0.00045422,10]
[406362159,1771799443442,-1007.0,0.00041176,60]
[406362160,1771799443452,-28549.36489582,0.00045422,10]
[406362161,1771799443465,-769420.36437292,0.00045422,10]
[406362162,1771799443476,-504.80397413,0.00045422,10]
[406362163,1771799443610,-8410.19288311,0.00045422,10]
[406362174,1771799446041,-1041.0,0.0004535,60]
[406362175,1771799446051,-1674.86148709,0.00045422,10]
[406362176,1771799446062,-10081.1788975,0.00045422,10]
[406362177,1771799446100,-449.78158191,0.00045422,10]
[406362178,1771799446329,-789.88461245,0.00045422,10]
[406362179,1771799446341,-2485.95076643,0.00045422,10]
[406362180,1771799446355,-6671.96574154,0.00045422,10]
[406362213,1771800631359,-1047.46797485,0.00016276,2]
[406362214,1771800631369,-30819.45437954,0.00016351,2]
[406362215,1771800631380,-3566.07764561,0.00016351,2]
[406362216,1771800631391,-867.29465335,0.00016351,2]
[406362217,1771800631402,-1850.0,0.00016351,2]
[406362218,1771800631418,-273.63724884,0.00016351,2]
[406362219,1771800631429,-339.75260614,0.00016351,2]
[406362220,1771800631440,-291.47,0.00016351,2]
[406362221,1771800631451,-334.02485,0.00016351,2]
[406362222,1771800631462,-511.41,0.00016351,2]
[406362223,1771800631479,-710.81,0.00016351,2]
[406362224,1771800631490,-24030.17407283,0.00016351,2]
[406362225,1771800631501,-276.65889505,0.00016351,2]
[406362239,1771800637450,-5600.0,0.00016351,2]
[406362255,1771800639635,-3430529.23564864,0.00016351,2]
[406362257,1771800639645,-250.0,0.00016376,2]
[406362258,1771800639655,-250.0,0.0001643,2]
[406362259,1771800639664,-350.0,0.00016449,2]
[406362260,1771800639678,-350.0,0.00016449,2]
[406362261,1771800639688,-1200.0,0.00016449,2]
[406362262,1771800639698,-300.0,0.00016449,2]
[406362263,1771800639707,-300.0,0.00016449,2]
[406362264,1771800639717,-500.0,0.0001645,2]
[406362265,1771800639727,-461.84008793,0.0001645,2]
[406362266,1771800639737,-223.36914146,0.0001645,2]
[406362267,1771800639747,-295.30163784,0.0001645,2]
[406362268,1771800639756,-500.0,0.0001645,2]
[406362269,1771800639766,-309.74873161,0.0001645,2]
[406362270,1771800639775,-500.0,0.0001645,2]
[406362271,1771800639785,-571.74431762,0.0001645,2]
[406362272,1771800639794,-500.0,0.0001645,2]
[406362273,1771800639803,-500.0,0.0001645,2]
[406362274,1771800639812,-500.0,0.0001645,2]
[406362275,1771800639822,-500.0,0.0001645,2]
[406362276,1771800639831,-500.0,0.0001645,2]
[406362277,1771800639840,-500.0,0.0001645,2]
[406362278,1771800639850,-500.0,0.0001645,2]
[406362279,1771800639860,-500.0,0.0001645,2]
[406362280,1771800639869,-500.0,0.0001645,2]
[406362281,1771800639879,-500.0,0.0001645,2]
[406362282,1771800639888,-500.0,0.0001645,2]
[406362283,1771800639897,-500.0,0.0001645,2]
[406362284,1771800639907,-500.0,0.0001645,2]
[406362285,1771800639916,-500.0,0.0001645,2]
[406362286,1771800639926,-500.0,0.0001645,2]
[406362287,1771800639935,-500.0,0.0001645,2]
[406362288,1771800639944,-500.0,0.0001645,2]
[406362289,1771800639954,-500.0,0.0001645,2]
[406362290,1771800639964,-500.0,0.0001645,2]
[406362291,1771800639974,-500.0,0.0001645,2]
[406362292,1771800639983,-157.53144753,0.0001645,2]
[406362293,1771800639998,-500.0,0.0001645,2]
[406362294,1771800640008,-500.0,0.0001645,2]
[406362295,1771800640018,-500.0,0.0001645,2]
[406362296,1771800640028,-500.0,0.0001645,2]
[406362297,1771800640039,-500.0,0.0001645,2]
[406362298,1771800640049,-211.38369706,0.0001645,2]
[406362299,1771800640059,-500.0,0.0001645,2]
[406362300,1771800640069,-500.0,0.0001645,2]
[406362301,1771800640079,-500.0,0.0001645,2]
[406362302,1771800640088,-500.0,0.0001645,2]
[406362303,1771800640098,-500.0,0.0001645,2]
[406362304,1771800640108,-200.0,0.0001645,2]
[406362305,1771800640117,-236.42687822,0.000165,2]
[406362306,1771800640127,-150.0,0.000166,2]
[406362307,1771800640136,-500.0,0.00016661,2]
[406362308,1771800640146,-500.0,0.00016661,2]
[406362309,1771800640156,-500.0,0.00016661,2]
[406362310,1771800640166,-1000.0,0.000169,2]
[406362311,1771800640175,-5000.0,0.000171,2]
[406362312,1771800640185,-250.0,0.00017669,2]
[406362313,1771800640195,-854.70477454,0.00017808,2]
[406362314,1771800640205,-854.70477454,0.00017808,2]
[406362315,1771800640215,-854.70477454,0.00017808,2]
[406362316,1771800640224,-882.05532732,0.00017808,2]
[406362317,1771800640234,-882.05532732,0.00017808,2]
[406362318,1771800640243,-858.73084219,0.00017808,2]
[406362319,1771800640253,-858.73084219,0.00017808,2]
[406362320,1771800640262,-858.73084219,0.00017808,2]
[406362321,1771800640271,-872.08887751,0.00017808,2]
[406362322,1771800640280,-855.53533863,0.00017808,2]
[406362323,1771800640290,-889.75675217,0.00017808,2]
[406362324,1771800640299,-900.57811808,0.00017808,2]
[406362325,1771800640308,-900.57811808,0.00017808,2]
[406362326,1771800640317,-900.57811808,0.00017808,2]
[406362327,1771800640327,-898.77696184,0.00017808,2]
[406362328,1771800640336,-898.77696184,0.00017808,2]
[406362329,1771800640346,-898.77696184,0.00017808,2]
[406362330,1771800640356,-865.07282577,0.00017808,2]
[406362331,1771800640365,-865.07282577,0.00017808,2]
[406362332,1771800640375,-896.94392988,0.00017808,2]
[406362333,1771800640385,-896.94392988,0.00017808,2]
[406362334,1771800640394,-999.99,0.00017899,2]
[406362335,1771800640404,-535.09,0.00017899,2]
[406362336,1771800640413,-1920.36,0.00017899,2]
[406362337,1771800640423,-10000.0,0.000179,2]
[406362338,1771800640432,-150.99,0.000179,2]
[406362339,1771800640441,-420.0,0.00017976,2]
[406362340,1771800640451,-250.0,0.00017986,2]
[406362341,1771800640460,-680.0,0.00018066,2]
[406362343,1771800640469,-150.99,0.00018327,2]
[406362345,1771800640479,-250.000001,0.00018552,2]
[406362347,1771800640488,-200.0,0.00019082,2]
[406362349,1771800640497,-236.42687822,0.00019211,2]
[406362351,1771800640507,-587.0,0.00019645,2]
[406362353,1771800640517,-823.0,0.00021469,2]
[406362355,1771800640526,-250.0,0.0002167,2]
[406362357,1771800640535,-236.42687822,0.00021922,2]
[406362359,1771800640544,-1047.46797483,0.00022084,2]
[406362361,1771800640554,-1152.0,0.00023462,2]
[406362363,1771800640563,-236.42687822,0.00024633,2]
[406362364,1771800640572,-150.0,0.00024658,2]
[406362366,1771800640582,-176.3781679,0.0002476,2]
[406362367,1771800640591,-1613.0,0.0002564,2]
[406362368,1771800640601,-150.0,0.0002589,2]
[406362369,1771800640610,-1852.42,0.00025963,2]
[406362370,1771800640619,-156.76,0.00026614,2]
[406362371,1771800640630,-711.16,0.00026828,2]
[406362372,1771800640639,-150.0,0.00027185,2]
[406362373,1771800640648,-156.76,0.00027206,2]
[406362374,1771800640657,-236.42687822,0.00027344,2]
[406362375,1771800640667,-156.76,0.00027797,2]
[406362376,1771800640676,-1047.46797483,0.00027892,2]
[406362377,1771800640686,-774.0,0.0002802,2]
[406362378,1771800640695,-156.76,0.00028389,2]
[406362379,1771800640704,-150.0,0.00028544,2]
[406362380,1771800640714,-156.76,0.0002898,2]
[406362381,1771800640724,-1000.0,0.00029267,2]
[406362382,1771800640734,-156.76,0.00029571,2]
[406362383,1771800640743,-798795.5981,0.00029872,2]
[406362384,1771800640752,-150.0,0.00029971,2]
[406362385,1771800640762,-236.42687822,0.00030055,2]
[406362386,1771800640771,-156.76,0.00030163,2]
[406362387,1771800640780,-150.0,0.00030359,2]
[406362388,1771800640790,-163.29425341,0.00030633,2]
[406362389,1771800640799,-162.75273669,0.00030633,2]
[406362390,1771800640809,-156.76,0.00030754,2]
[406362391,1771800640818,-156.76,0.00031346,2]
[406362392,1771800640828,-150.0,0.0003147,2]
[406362393,1771800640837,-173.78509278,0.00031498,2]
[406362394,1771800640847,-160.0,0.00031806,2]
[406362395,1771800640856,-1500.0,0.00031937,120]
[406362396,1771800640866,-156.76,0.00031937,2]
[406362397,1771800640875,-1880.43,0.00032254,2]
[406362398,1771800640885,-558.95850289,0.00032331,30]
[406362399,1771800640894,-4231.45,0.00032383,2]
[406362400,1771800640903,-1056.52,0.00032413,2]
[406362401,1771800640913,-200.0,0.00032434,2]
[406362402,1771800640923,-35512.79727963,0.00032505,2]
[406362403,1771800640932,-3240.0,0.00032515,120]
[406362404,1771800640942,-156.76,0.00032529,2]
[406362405,1771800640951,-236.42687822,0.00032766,2]
[406362406,1771800640961,-1000.0,0.00032924,20]
[406362407,1771800640970,-318.92,0.00033,2]
[406362408,1771800640979,-3772.31,0.00033,14]
[406362409,1771800640991,-150.0,0.00033043,2]
[406362410,1771800641001,-156.76,0.0003312,2]
[406362411,1771800641011,-500.0,0.00033339,2]
[406362412,1771800641023,-500.0,0.00033674,120]
[406362413,1771800641034,-1047.46797483,0.00033699,2]
[406362414,1771800641044,-156.76,0.00033711,2]
[406362415,1771800641054,-156.76,0.00034303,2]
[406362416,1771800641064,-150.0,0.00034696,2]
[406362417,1771800641073,-156.76,0.00034894,2]
[406362418,1771800641083,-6738.3571,0.00034973,2]
[406362419,1771800641093,-4129.7286,0.00034973,2]
[406362420,1771800641103,-68385.1946,0.00034973,2]
[406362421,1771800641113,-1039.0,0.00035073,2]
[406362422,1771800641123,-618.0,0.00035073,2]
[406362423,1771800641132,-1339.839,0.00035073,2]
[406362424,1771800641142,-3494.0,0.00035073,2]
[406362425,1771800641151,-1276.0,0.00035073,2]
[406362426,1771800641160,-5977.0,0.00035073,2]
[406362427,1771800641169,-413.0,0.00035073,2]
[406362428,1771800641179,-2453.0,0.00035073,2]
[406362429,1771800641188,-250.0,0.00035192,60]
[406362430,1771800641198,-250.0,0.00035192,60]
[406362431,1771800641208,-250.0,0.00035192,60]
[406362432,1771800641217,-250.0,0.00035192,60]
[406362433,1771800641226,-1000.0,0.0003525,2]
[406362434,1771800641236,-1000.0,0.00035408,2]
[406362435,1771800641245,-1000.0,0.00035408,2]
[406362436,1771800641254,-1000.0,0.00035408,2]
[406362437,1771800641263,-1000.0,0.00035408,2]
[406362438,1771800641272,-1000.0,0.00035408,2]
[406362439,1771800641282,-482.8456,0.00035466,120]
[406362440,1771800641292,-236.42687822,0.00035477,2]
[406362441,1771800641302,-156.76,0.00035486,2]
[406362442,1771800641311,-318.92,0.000355,2]
[406362443,1771800641320,-3772.31,0.000355,14]
[406362444,1771800641330,-152.0,0.00035602,3]
[406362445,1771800641340,-500.0,0.00035616,7]
[406362446,1771800641349,-459.0262979,0.00035616,7]
[406362447,1771800641359,-210.05,0.00035696,2]
[406362448,1771800641370,-150.0,0.0003643,2]
[406362449,1771800641379,-5531.0,0.00037,5]
[406362450,1771800641389,-1388.946,0.00037246,47]
[406362451,1771800641399,-171.919,0.00037246,47]
[406362452,1771800641409,-5436.36,0.00038,60]
[406362453,1771800641419,-618.0,0.00038073,2]
[406362454,1771800641428,-1339.0,0.00038073,2]
[406362455,1771800641438,-3494.0,0.00038073,2]
[406362456,1771800641447,-1276.0,0.00038073,2]
[406362457,1771800641457,-5977.0,0.00038073,2]
[406362458,1771800641467,-413.0,0.00038073,2]
[406362459,1771800641476,-324.7149346,0.000381,33]
[406362460,1771800641485,-352794.09481982,0.000381,33]
[406362461,1771800641495,-236.42687822,0.00038188,2]
[406362462,1771800641504,-150.0,0.00038252,2]
[406362463,1771800641515,-546.5,0.00038628,30]
[406362464,1771800641524,-1029.0,0.00038628,30]
[406362465,1771800641534,-2241.0015,0.00038888,30]
[406362466,1771800641544,-193.55,0.00038904,14]
[406362467,1771800641554,-1047.46797483,0.00039507,2]
[406362468,1771800641563,-1000.0,0.00039656,2]
[406362469,1771800641573,-151.0,0.00039997,14]
[406362470,1771800641582,-9881.92,0.0004,120]
[406362471,1771800641591,-9999.99,0.0004,120]
[406362472,1771800641602,-9999.99,0.0004,120]
[406362473,1771800641612,-10000.0,0.0004,120]
[406362474,1771800641622,-150.0,0.00040165,2]
[406362475,1771800641632,-2000.0,0.000403,2]
[406362476,1771800641642,-306.05328416,0.00040882,2]
[406362477,1771800641652,-300.0,0.00040882,2]
[406362478,1771800641662,-306.05328416,0.00040882,2]
[406362479,1771800641672,-300.0,0.00040882,2]
[406362480,1771800641681,-236.42687822,0.00040899,15]
[406362481,1771800641691,-3772.31,0.000409,14]
[406362482,1771800641700,-90697.0,0.0004095,60]
[406362483,1771800641709,-500.0,0.00040999,2]
[406362484,1771800641720,-500.0,0.00040999,8]
[406362485,1771800641729,-10000.0,0.00041,120]
[406362486,1771800641738,-500.0,0.00041,2]
[406362487,1771800641748,-500.0,0.00041,2]
[406362488,1771800641757,-500.0,0.00041,2]
[406362489,1771800641767,-500.0,0.00041,2]
[406362490,1771800641776,-500.0,0.00041,2]
[406362491,1771800641786,-372.93950921,0.00041,2]
[406362492,1771800641795,-618.0,0.00041073,2]
[406362493,1771800641805,-1339.0,0.00041073,2]
[406362494,1771800641814,-2259.616,0.00041073,2]
[406362495,1771800641824,-605.469,0.00041073,2]
[406362496,1771800641833,-5971.0,0.00041073,2]
[406362497,1771800641844,-413.0,0.00041073,2]
[406362498,1771800641855,-2014.60439415,0.00041096,10]
[406362499,1771800641865,-169.289495,0.00041096,120]
[406362500,1771800641875,-200.0,0.00041709,8]
[406362501,1771800641885,-200.0,0.00041709,8]
[406362502,1771800641895,-200.0,0.00041709,8]
[406362503,1771800641904,-200.0,0.00041709,8]
[406362504,1771800641914,-200.0,0.00041709,8]
[406362505,1771800641924,-200.0,0.00041709,8]
[406362506,1771800641934,-200.0,0.00041709,8]
[406362507,1771800641943,-200.0,0.00041709,8]
[406362508,1771800641953,-309.0,0.000418,30]
[406362509,1771800641962,-152.0,0.00041893,4]
[406362510,1771800641972,-150.0,0.00042,30]
[406362511,1771800641982,-19800.0,0.00042,2]
[406362512,1771800641996,-150.0,0.00042173,120]
[406362513,1771800642006,-193.55,0.00042191,14]
[406362514,1771800642015,-90697.0,0.000423,60]
[406362515,1771800642025,-2237.71006487,0.000425,2]
[406362516,1771800642035,-152.59,0.00042683,120]
[406362517,1771800642045,-500.0,0.0004271,120]
[406362518,1771800642055,-200.0,0.0004271,120]
[406362519,1771800642065,-168.0,0.00042736,2]
[406362520,1771800642074,-6291.90397855,0.0004295,10]
[406362521,1771800642083,-282.59,0.00043452,120]
[406362522,1771800642093,-53167.10814854,0.0004365,60]
[406362523,1771800642116,-323.311332,0.0004365,60]
[406362524,1771800642127,-324.7149346,0.0004365,60]
[406362526,1771800642138,-676.96996,0.0004365,60]
[406362528,1771800642149,-2782.00903633,0.0004365,60]
[406362529,1771800642165,-33422.88658853,0.0004365,60]
[406362530,1771800642174,-500.0,0.000438,60]
[406362531,1771800642184,-500.0,0.000438,60]
[406362532,1771800642194,-3772.31,0.000438,14]
[406362533,1771800642203,-500.0,0.00044,3]
[406362534,1771800642212,-2000.0,0.00044,2]
[406362535,1771800642222,-1000.0,0.00044062,2]
[406362536,1771800642231,-1867.01359112,0.00044065,2]
[406362537,1771800642240,-150.0,0.00044269,120]
[406362538,1771800642250,-150.0,0.00044269,120]
[406362539,1771800642259,-150.0,0.00044281,120]
[406362540,1771800642269,-200.0,0.0004431,120]
[406362541,1771800642279,-482.65593714,0.00044383,120]
[406362542,1771800642288,-590.84051474,0.00044383,120]
[406362544,1771800642298,-500.0,0.00044383,120]
[406362545,1771800642307,-500.0,0.00044383,120]
[406362546,1771800642316,-500.0,0.00044383,120]
[406362547,1771800642326,-500.0,0.00044383,120]
[406362548,1771800642335,-500.0,0.00044383,120]
[406362549,1771800642344,-500.0,0.00044383,120]
[406362550,1771800642355,-500.000001,0.00044383,120]
[406362551,1771800642364,-506.2571619,0.00044383,120]
[406362552,1771800642374,-500.0,0.00044383,120]
[406362553,1771800642383,-500.0,0.00044383,120]
[406362554,1771800642393,-500.0,0.00044383,120]
[406362555,1771800642402,-500.0,0.00044383,120]
[406362556,1771800642411,-500.0,0.00044383,120]
[406362557,1771800642421,-500.0,0.00044383,120]
[406362558,1771800642430,-500.0,0.00044383,120]
[406362560,1771800642440,-500.0,0.00044383,120]
[406362562,1771800642449,-500.0,0.00044383,120]
[406362563,1771800642459,-500.0,0.00044383,120]
[406362564,1771800642468,-500.0,0.00044383,120]
[406362565,1771800642477,-505.50000001,0.00044383,120]
[406362566,1771800642487,-550.41402608,0.00044383,120]
[406362567,1771800642496,-243.5358712,0.00044383,120]
[406362568,1771800642505,-500.0,0.00044383,120]
[406362569,1771800642514,-500.0,0.00044383,120]
[406362570,1771800642523,-500.0,0.00044383,120]
[406362571,1771800642532,-500.0,0.00044383,120]
[406362572,1771800642542,-500.0,0.00044383,120]
[406362573,1771800642551,-500.0,0.00044383,120]
[406362574,1771800642561,-500.0,0.00044383,120]
[406362575,1771800642570,-500.0,0.00044383,120]
[406362576,1771800642579,-500.0,0.00044383,120]
[406362577,1771800642588,-500.0,0.00044383,120]
[406362578,1771800642598,-500.0,0.00044383,120]
[406362579,1771800642608,-399.0374907,0.00044383,120]
[406362580,1771800642617,-150.0,0.000444,120]
[406362581,1771800642627,-150.0,0.000444,120]
[406362582,1771800642636,-150.0,0.000444,120]
[406362583,1771800642645,-150.0,0.000444,120]
[406362584,1771800642655,-168.0,0.00044805,2]
[406362585,1771800642664,-276.886087,0.0004481,120]
[406362586,1771800642813,-243.63605972,0.00044867,7]
[406362587,1771800642823,-500.0,0.00044896,60]
[406362588,1771800642832,-303.81833795,0.00044896,60]
[406362589,1771800642841,-249.0001,0.000449,7]
[406362590,1771800642851,-852.0,0.000449,30]
[406362591,1771800642861,-429.0,0.000449,30]
[406362592,1771800642870,-487.0,0.000449,2]
[406362593,1771800642880,-693.14,0.000449,2]
[406362594,1771800642889,-2090.9,0.00044953,2]
[406362595,1771800642899,-2013.46,0.00044954,2]
[406362596,1771800642908,-243.63605972,0.0004496,7]
[406362597,1771800642917,-500.0,0.00044967,2]
[406362598,1771800642927,-500.0,0.00044967,120]
[406362599,1771800642936,-500.0,0.00044999,120]
[406362600,1771800642946,-90697.0,0.00045,60]
[406362601,1771800642956,-571.74475637,0.00045,4]
[406362602,1771800642966,-1044.11858127,0.00045,30]
[406362603,1771800642976,-2090.9,0.00045029,2]
[406362604,1771800642987,-200.0,0.00045061,30]
[406362605,1771800642999,-200.0,0.00045061,30]